Cogmind - Beta 13 @@@ ROGUE MODE // 2024.05.15 @ 21:23:09 Player: Xorko Result: Self-destructed Performance ------------- Evolutions (2) 1000 Regions Visited (3) 600 Robots Destroyed (35) 175 Value Destroyed (1075) 1075 Prototype IDs (0) 0 Alien Tech Used (0) 0 Bonus (49) 49 TOTAL SCORE: 2899 Bonus ------- High Alert Combat Kills 49 Cogmind --------- Core Integrity 308/550 Matter 94/300 Energy 66/100 System Corruption 0% Temperature Cool (40) Movement Walking (120) Location -8/Materials Parts ------- > --- POWER (1) -------- (None) > --- PROPULSION (3) --- Aluminum Leg Aluminum Leg > --- UTILITY (3) ------ Medium Storage Unit > --- WEAPON (4) ------- (None) > --- INVENTORY (10) --- Aluminum Leg Medium Storage Unit Large Storage Unit Compact Battery (200) Core Shielding Utility Shielding Peak State ------------ > --- POWER ------------ Ion Engine > --- PROPULSION ------- Aluminum Leg Aluminum Leg Carbon-fiber Leg > --- UTILITY ---------- Medium Storage Unit Particle Charger Shield Generator > --- WEAPON ----------- Assault Rifle Heavy Assault Rifle Heavy Assault Rifle Heavy Assault Rifle > --- INVENTORY -------- Ion Engine Light Treads Aluminum Leg Aluminum Leg Aluminum Leg Medium Storage Unit Large Storage Unit Core Shielding Utility Shielding Heavy Assault Rifle [Rating: 20] Favorites ----------- Power Ion Engine Engine Ion Engine Propulsion Aluminum Leg Leg Aluminum Leg Utility Medium Storage Unit Device Particle Charger Storage Medium Storage Unit Protection Core Shielding Weapon Heavy Assault Rifle Energy Gun Small Laser Ballistic Gun Heavy Assault Rifle Build | -11 -10 -9 -8 ------- Run | Yrd Mat Mat Mat Slots Evolved 4 | . . 2 2 Power . | . . . . Propulsion 1 | . . 1 . Utility 1 | . . 1 . Weapon 2 | . . . 2 Parts Attached 37 | 6 2 16 13 Power 3 | 1 . 1 1 Engine 3 | 1 . 1 1 Core . | . . . . Reactor . | . . . . Propulsion 14 | 2 . 8 4 Treads . | . . . . Leg 14 | 2 . 8 4 Wheel . | . . . . Hover . | . . . . Flight . | . . . . Utility 9 | 1 2 4 2 Device 3 | . . 1 2 Storage 2 | 1 1 . . Processor . | . . . . Hackware . | . . . . Protection 4 | . 1 3 . Artifact . | . . . . Weapon 11 | 2 . 3 6 Energy Gun 2 | 1 . . 1 Energy Cannon . | . . . . Ballistic Gun 9 | 1 . 3 5 Ballistic Cannon . | . . . . Launcher . | . . . . Special Weapon . | . . . . Impact Weapon . | . . . . Slashing Weapon . | . . . . Piercing Weapon . | . . . . Special Melee Weapon . | . . . . Unidentified Prototypes . | . . . . Parts Lost 17 | . . 3 14 Power 2 | . . . 2 Propulsion 4 | . . 1 3 Utility 4 | . . 2 2 Weapon 7 | . . . 7 Highest Loss Streak 14 | . . 2 14 To Critical Strikes 2 | . . . 2 Average Slot Usage (%) 92 | . 99 91 90 Engine 10 | . 14 11 7 Leg 29 | . 28 31 25 Device 3 | . . 1 8 Storage 10 | . 14 11 9 Protection 12 | . 13 14 6 Energy Gun 3 | . 14 2 . Ballistic Gun 21 | . 14 19 32 Naked Turns . | . . . . Heaviest Build 31 | 13 19 24 31 Greatest Support 36 | 20 20 36 35 Greatest Overweight (x) 3 | 3 . 1 1 Average Overweight (x) . | . . . . Largest Inventory Capacity 10 | 8 10 10 10 Average Capacity 9 | 7 8 10 10 Most Carried 10 | 5 8 10 10 Average Carried 8 | 3 6 9 9 Final Capacity 10 | 8 10 10 10 Final Carried 10 | 4 8 10 6 Class Distribution -------------------- 38% | Scavenger-Mutant 36% | Mutant 17% | Scavenger-Gunner 7% | Scavenger-Tank Dominant Class ---------------- Mutant | -10/Materials Scavenger-Mutant | -9/Materials Scavenger-Gunner | -8/Materials Resources | -11 -10 -9 -8 ----------- Run | Yrd Mat Mat Mat Matter Collected 959 | 263 44 474 178 Remotely . | . . . . Salvage Created 1413 | . 121 958 334 Parts 101 | . 10 71 20 Haulers Intercepted 1 | . . 1 . Recyclers Shooed . | . . . . Parts Field Recycled . | . . . . Retrieved Matter . | . . . . Parts Self-Destructed . | . . . . Prevented . | . . . . Kills | -11 -10 -9 -8 ------- Run | Yrd Mat Mat Mat Combat Hostiles Destroyed 28 | . 2 20 6 Guns 28 | . 2 20 6 Classes Destroyed 11 | . 2 7 2 Worker 1 | . . 1 . Builder 1 | . . . 1 Hauler 1 | . . 1 . Recycler 1 | . . 1 . Watcher 3 | . 1 2 . Swarmer 5 | . . 5 . Grunt 11 | . 2 7 2 Brawler 1 | . . 1 . Duelist 1 | . . 1 . Sentry 9 | . . 6 3 Specialist 1 | . . . 1 Best Kill Streak 6 | . 2 6 3 Combat Bots Only 5 | . 2 5 3 Max Kills in Single Turn 2 | . 1 2 1 Gunslinging 1 | . . 1 . Exploded . | . . . . Melee . | . . . . Uniques/NPCs Destroyed . | . . . . Combat | -11 -10 -9 -8 -------- Run | Yrd Mat Mat Mat Hostile Shots Fired 240 | . 8 82 150 Missed 79 | . 3 28 48 Damage Taken 2332 | . 67 703 1562 Core 411 | . 11 158 242 Absorbed by Shields 51 | . . . 51 Redirected to Shielding 57 | . 8 46 3 Core Remaining (%) 85 | 100 95 60 . Volleys Fired 113 | 1 8 69 35 Largest 4 | 1 2 2 4 Hottest 93 | 20 60 63 93 Shots Fired 255 | 1 16 138 100 Gun 255 | 1 16 138 100 Cannon . | . . . . Launcher . | . . . . Special . | . . . . Kinetic 219 | 1 8 114 96 Thermal 36 | . 8 24 4 Explosive . | . . . . Electromagnetic . | . . . . Robot Hit Streak 12 | 1 6 12 7 Robot Miss Streak 4 | . 1 2 4 Penetration Max 1 | . . . 1 Secondary Targets 2 | . . 2 . Max Gunslinging Chain 1 | . . 1 . Shots Hit Robots 166 | 1 11 95 59 Core Hits 61 | . 6 40 15 Critical Kills . | . . . . Critical Parts Destroyed 1 | . . . 1 Critical Strikes 1 | . . . 1 Destroy 1 | . . . 1 Melee Attacks . | . . . . Impact . | . . . . Slashing . | . . . . Piercing . | . . . . Sneak Attacks . | . . . . Combat Hostiles . | . . . . Follow-up Attacks . | . . . . Damage Inflicted 2445 | 15 133 1345 952 Guns 2445 | 15 133 1345 952 Cannons . | . . . . Explosions . | . . . . Melee . | . . . . Ramming . | . . . . Kinetic 2135 | 15 69 1143 908 Thermal 310 | . 64 202 44 Explosive . | . . . . Electromagnetic . | . . . . Impact . | . . . . Slashing . | . . . . Piercing . | . . . . Highest Corruption 2 | . . 2 . Average Corruption 2 | . . 2 . Corruption Purged . | . . . . Corruption Blocked . | . . . . Effects 4 | . . 4 . Matter Fused 3 | . . 3 . Energy Discharges 1 | . . 1 . Overload Shots . | . . . . Overflow Damage . | . . . . Projectiles . | . . . . Explosions . | . . . . Melee . | . . . . Knockbacks . | . . . . Impact . | . . . . Kinetic . | . . . . Secondary . | . . . . Self-Inflicted Damage . | . . . . Shots . | . . . . Rammed . | . . . . Targets Rammed . | . . . . Kicked . | . . . . Crushed . | . . . . Highest Temperature 42 | . 30 18 42 Average Temperature 14 | . 21 7 16 Received Heat Transfer 552 | . 36 198 318 Siege Activations . | . . . . Robots Corrupted . | . . . . Combat Hostiles . | . . . . Parts Fried . | . . . . Impact Corruptions . | . . . . Robots Melted . | . . . . Combat Hostiles . | . . . . Parts Melted . | . . . . Heat Transferred 711 | . 150 450 111 Parts Sabotaged . | . . . . Parts Stolen . | . . . . Parts Stripped . | . . . . Power Chain Reactions . | . . . . Alert | -11 -10 -9 -8 ------- Run | Yrd Mat Mat Mat Peak Influence 488 | . 73 488 288 Initial 142 | . . 30 142 Average 235 | . 40 338 214 Maximum Alert Level 2 | . . 2 1 Low Security (%) 42 | 100 100 14 49 Level 1 37 | . . 47 50 Level 2 19 | . . 38 . Level 3 . | . . . . Level 4 . | . . . . Level 5 . | . . . . High Security . | . . . . Max Security . | . . . . Squads Dispatched 4 | . . 1 3 Investigation 1 | . . 1 . Extermination . | . . . . Reinforcement 3 | . . . 3 Assault . | . . . . Garrison . | . . . . Intercept . | . . . . Searches Triggered . | . . . . Construction Impeded . | . . . . Haulers Reinforced . | . . . . Active Scanning Responses . | . . . . Cargo Convoy Interrupts . | . . . . Stealth | -11 -10 -9 -8 --------- Run | Yrd Mat Mat Mat Distress Signals 3 | . . 2 1 Communications Jammed . | . . . . Distress Signals . | . . . . Times Spotted 45 | . 3 28 14 Peak Tracking Total 11 | . 2 5 11 Tactical Retreats 4 | . . 2 2 Traps | -11 -10 -9 -8 ------- Run | Yrd Mat Mat Mat Traps Triggered . | . . . . Indirectly . | . . . . Trap Hack Attempts . | . . . . Triggered . | . . . . Disarmed . | . . . . Reprogrammed . | . . . . Reused . | . . . . Traps Extracted . | . . . . Installed . | . . . . Triggered . | . . . . Machines | -11 -10 -9 -8 ---------- Run | Yrd Mat Mat Mat Machines Disabled . | . . . . Max in Single Turn . | . . . . Machines Repaired . | . . . . Machines Dismantled . | . . . . Machines Sabotaged . | . . . . Overloaded Fab Kills . | . . . . Hacking | -11 -10 -9 -8 --------- Run | Yrd Mat Mat Mat Machines Accessed 2 | . . 1 1 Terminals 2 | . . 1 1 Fabricators . | . . . . Repair Stations . | . . . . Recycling Units . | . . . . Scanalyzers . | . . . . Garrison Access . | . . . . Total Hacks 4 | . . 3 1 Successful 3 | . . 2 1 Failed 1 | . . 1 . Catastrophic . | . . . . Database Lockouts . | . . . . Manual . | . . . . Terminals 4 | . . 3 1 Fabricators . | . . . . Repair Stations . | . . . . Recycling Units . | . . . . Scanalyzers . | . . . . Garrison Access . | . . . . Terminal Hacks 3 | . . 2 1 Maintenance Status 1 | . . 1 . Investigation Status 1 | . . 1 . Zone Layout 1 | . . . 1 Fabricator Hacks . | . . . . Repair Station Hacks . | . . . . Recycling Unit Hacks . | . . . . Scanalyzer . | . . . . Garrison Access Hacks . | . . . . Unauthorized Hacks . | . . . . Terminals . | . . . . Fabricators . | . . . . Repair Stations . | . . . . Recycling Units . | . . . . Scanalyzers . | . . . . Garrison Access . | . . . . Data Cores Recovered . | . . . . Used . | . . . . Hacking Detections 1 | . . 1 . Full Trace Events 1 | . . 1 . Feedback Events . | . . . . Feedback Blocked . | . . . . Robot Schematics Acquired . | . . . . Robots Built . | . . . . Authchips . | . . . . Time . | . . . . Total Robot Build Rating . | . . . . Part Schematics Acquired . | . . . . Parts Built . | . . . . Authchips . | . . . . Time . | . . . . Total Part Build Rating . | . . . . Parts Repaired . | . . . . Time . | . . . . Parts Recycled . | . . . . Recycled Matter . | . . . . Retrieved Matter . | . . . . Retrieved Components . | . . . . Parts Scanalyzed . | . . . . Part Schematics Acquired . | . . . . Parts Damaged . | . . . . Bothacking | -11 -10 -9 -8 ------------ Run | Yrd Mat Mat Mat Used RIF Installer . | . . . . Robots Hacked . | . . . . Non-combat . | . . . . Combat . | . . . . Robot Hacks Applied . | . . . . Relay Couplers Released . | . . . . Fabnet Peak Effective % . | . . . . Robots Rewired . | . . . . Allies Hacked . | . . . . Hacks Repelled . | . . . . Allies | -11 -10 -9 -8 -------- Run | Yrd Mat Mat Mat Total Allies . | . . . . Largest Group . | . . . . Highest-Rated Group . | . . . . Highest-Rated Ally . | . . . . Total Orders . | . . . . Ally Attacks . | . . . . Total Damage . | . . . . Kills . | . . . . Allies Corrupted . | . . . . Allies Melted . | . . . . Intel | -11 -10 -9 -8 ------- Run | Yrd Mat Mat Mat Robot Analysis Total . | . . . . Derelict Logs Recovered . | . . . . Drone Launches . | . . . . Drone Recoveries . | . . . . Exploration | -11 -10 -9 -8 ------------- Run | Yrd Mat Mat Mat Turns Passed 1772 | 115 289 905 463 Spaces Moved 956 | 79 203 455 219 Core 15 | 15 . . . Treads . | . . . . Legs 941 | 64 203 455 219 Wheels . | . . . . Hover . | . . . . Flight . | . . . . Fastest Speed 50 | 50 120 120 120 Average Speed 120 | 123 120 120 121 Slowest Speed 200 | 200 120 190 190 Overloaded Moves . | . . . . Propulsion Burnouts . | . . . . Robots Hopped . | . . . . Cave-ins Triggered . | . . . . Exploration Rate (%) 26 | 4 35 43 24 Regions Visited 3 Branch Regions . Pre-discovered Areas . | . . . . Known Exits Taken . | . . . . Unknown Exits Taken 3 | 1 1 1 . Scrap Searched . | . . . . Spaces Dug . | . . . . Terrain Destroyed . | . . . . Melee . | . . . . Projectile . | . . . . AOE . | . . . . Terrain Rammed . | . . . . Walls Destroyed . | . . . . Machines Disabled . | . . . . Actions | -11 -10 -9 -8 --------- Run | Yrd Mat Mat Mat Total 1346 | 95 234 675 342 Wait 199 | . 12 123 64 Move 953 | 78 202 454 219 Hop . | . . . . Pick Up 29 | 10 7 5 7 Fast Attach 4 | . . 4 . Attach 17 | 6 1 2 8 Detach . | . . . . Swap 16 | . 1 10 5 Drop 15 | . 3 8 4 Fire 113 | 1 8 69 35 Melee . | . . . . Ram . | . . . . Kick . | . . . . Crush . | . . . . Escape Stasis . | . . . . Rewire . | . . . . Trap . | . . . . Miscellaneous . | . . . . Route ------- -11/Scrapyard -10/Materials -9/Materials -8/Materials (discovered 1 exit: [*Sto]) History --------- Turn | Location | Event 22 | -11/Scrapyard | Discovered new exit (range 16) 116 | -11/Scrapyard | Entered Materials 282 | -10/Materials | Discovered new exit (range 6) 308 | -10/Materials | Build established: Mutant 405 | -10/Materials | Entered another Materials area 405 | -9/Materials | Evolved 2 slots: Propulsion x1, Utility x1 938 | -9/Materials | Build established: Scavenger-Mutant 1291 | -9/Materials | Discovered new exit (range 16) 1310 | -9/Materials | Entered another Materials area 1310 | -8/Materials | Evolved 2 slots: Weapon x2 1578 | -8/Materials | Discovered new exit (range 7) 1773 | -8/Materials | Self-destructed Last Messages --------------- 01751_ Penetrated by Slug. 01754_ Hvy. Assault Rifle destroyed. 01756_ Acquired Particle Gun. 01757_ Penetrated by Slug. 01757_ Carbon-fiber Leg destroyed. 01758_ Acquired Gauss Rifle. 01759_ K-01 Serf collects debris. 01760_ Slug penetrates Wall. 01762_ K-01 Serf collects debris. 01763_ Penetrated by Slug. 01763_ Slug penetrates Wall. 01763_ Slug penetrates X-62 Marksman. 01766_ K-01 Serf collects debris. 01766_ Penetrated by Slug. 01766_ Slug penetrates X-62 Marksman. 01769_ Gauss Rifle destroyed. 01769_ Penetrated by Slug. 01769_ K-01 Serf collects debris. 01772_ Penetrated by Slug. 01772_ Particle Gun destroyed. Map ----- +----------------------------------------------------+ | ?????????????????????????????????????????????????# | | ?????????????????????????????????????????????????# | | ?????????????????????????????????????????????????# | | ??????????????????????????????????????#########??# | | ??????????????????????????????????????# ! #### | | ??????????????????????????????????????# """ + | | ??????????????????????????????????????# """ # ## | | ??????????????????????????????????????# = """ # #? | | ??????????????????????????? ????????# # #? | | ??????????????????????????# ????????######### #? | | ??????????????????????????# #???????????????# #? | | ??????????????????????????# #????????######## #? | | ??????????????????????????# #????????# = # #? | | ????????????????????????### #????????# T # ## | | ???????????????????????? #????????# + | | ????????????????????????? +????????# # ## | | ?????????????????????????? #?? + # #? | | ??????????????????????????# # #[ # #? | | ?????????????????########## # ???######## #? | | ?????????????????# # #?????????#######/## | | ?????????????????# # |#??######## / | | ?????????????????# # =%#### [=%] # | | ?????????????????# #%*| + # """ | | ?????????????????# =#Y! #### "" # " """ | | ?????????????????# !hxu! #??# """ # """ | | ?????????????????# === @#% #??# """%# | | ?????????????????#[=== !# #??# ########## | | ?????????????????#!%== # #??####+###????????? | | ?????????????????#!######## ????? ??????????? | | ?????????????????#????????# ???? ?????????? | | ?????????????????????????? ??? ?????????? | | ????????????????????????? ####??+###????????? | | ????????????????????????? #?????????????????? | | ????????????????????????#!!!!!!#?????????????????? | | ????????????????????????#!!!!!!#?????????????????? | | ????????????????????????########?????????????????? | | ?????????????????????????????????????????????????? | | ?????????????????????????????????????????????????? | | ?????????????????????????????????????????????????? | | ?????????????????????????????????????????????????? | | ?????????????????????????????????????????????????? | | ?????????????????????????????????????????????????? | | ?????????????????????????????????????????????????? | | | | | | | | | | | | | | | +----------------------------------------------------+ Best States ------------- Heat Dissipation 31 Energy Generation 10 Energy Capacity 250 Matter Stores 300 Matter Capacity 300 Sight Range 16 Terrain Scan Density 10 Additional Mass Support 6 Armor Coverage 150 Core Shielding 20 Propulsion Shielding 33 Utility Shielding 33 Evasion (%) 55 Particle Charging 15 Item Schematics ----------------- None Robot Schematics ------------------ None Fabricated ------------ Nothing Alien Tech Used ----------------- None Achievements -------------- Loot Pinata Challenges ------------ None Game ------ Seed HardcellInsulatedBay Manual? 0 Play Time 00:26:15 Cumulative 4.4 hours Start 2024.05.15 @ 20:32:51 End 2024.05.15 @ 21:23:09 Sessions 2 Manual Loads 0 Difficulty Rogue Special Mode None Game No. 5 Rogue 2 Adventurer 3 Explorer 0 Win Type - Total 0 Types 0/0/0/0/0/0/0/0/0 Lore% 1 Gallery% 7 Achievement% 8 Wizard Run 0 Options --------- Layout 1 ASCII 0 Keyboard 0 Movement Mouse Keybinds 0 Fullscreen 2 Font 32/SmallcapsGlow Map View 50x35 Zoom Use 0% Tactical HUD 1 Map Filters NONE Filters NONE Steam 1 RUN: cfc5576d-03b5-4c58-9925-cd159a9cec29